bitfinex/quotes_BTCUSD_20250109
["timestamp","ask_amount","ask_price","bid_price","bid_amount"]
[1736428757982,0.214387,93289.0,93282.0,0.00155214]
[1736428758720,0.214397,93285.0,93282.0,0.00155214]
[1736428759140,0.15,93295.0,93282.0,0.00155214]
[1736428759359,0.214387,93289.0,93282.0,0.00155214]
[1736428759562,0.428774,93289.0,93282.0,0.00155214]
[1736428759773,0.214398,93285.0,93282.0,0.00155214]
[1736428760318,0.214387,93289.0,93282.0,0.00155214]
[1736428760517,0.214387,93289.0,93282.0,0.00555214]
[1736428760927,0.214387,93289.0,93282.0,0.00155214]
[1736428761114,0.214387,93289.0,93282.0,0.00355214]
[1736428761329,0.214387,93289.0,93282.0,0.00855214]
[1736428761587,0.214387,93289.0,93282.0,0.00355214]
[1736428761793,0.214387,93289.0,93282.0,0.00155214]
[1736428762006,0.214396,93286.0,93282.0,0.00755214]
[1736428762635,0.214396,93286.0,93282.0,0.00555214]
[1736428763253,0.214396,93286.0,93282.0,0.00355214]
[1736428763676,0.214396,93286.0,93282.0,0.00755214]
[1736428763898,0.214396,93286.0,93282.0,0.00355214]
[1736428764283,0.214396,93286.0,93282.0,0.00855214]
[1736428764481,0.214396,93286.0,93283.0,0.00784]
[1736428764909,0.214396,93286.0,93284.0,0.00784]
[1736428765765,0.214396,93286.0,93285.0,0.00784]
[1736428767175,0.23292082,93289.0,93285.0,0.00784]
[1736428767176,0.01853382,93289.0,93285.0,0.01384]
[1736428767385,0.214389,93288.0,93285.0,0.01384]
[1736428767599,0.214389,93288.0,93286.0,0.00784]
[1736428767600,0.428778,93288.0,93286.0,0.00784]
[1736428767812,0.428778,93288.0,93285.0,0.006]
[1736428768026,0.428778,93288.0,93286.0,0.00784]
[1736428769192,0.428778,93288.0,93286.0,0.01084]
[1736428769802,0.428778,93288.0,93286.0,0.00784]
[1736428770008,0.428778,93288.0,93286.0,0.01084]
[1736428771228,0.214389,93288.0,93286.0,0.01084]
[1736428771435,0.214389,93288.0,93286.0,0.01584]
[1736428771593,0.214389,93288.0,93286.0,0.01284]
[1736428771996,0.214389,93288.0,93286.0,0.01584]
[1736428772204,0.214389,93288.0,93286.0,0.01084]
[1736428772411,0.214389,93288.0,93286.0,0.00784]
[1736428772612,0.214389,93288.0,93286.0,0.01284]
[1736428772994,0.214389,93288.0,93287.0,0.00784]
[1736428773209,0.364389,93288.0,93287.0,0.00784]
[1736428773387,0.364389,93288.0,93286.0,0.008]
[1736428773388,0.15,93287.0,93286.0,0.008]
[1736428773637,0.15,93287.0,93286.0,0.01284]
[1736428774506,0.214389,93288.0,93286.0,0.01284]
[1736428775027,0.214373,93295.0,93287.0,0.1292]
[1736428775236,0.214382,93292.0,93287.0,0.1292]
[1736428775873,0.214368,93298.0,93291.0,0.00155214]
[1736428776082,0.214366,93299.0,93292.0,0.00155214]
[1736428778073,0.214364,93300.0,93292.0,0.00155214]
[1736428778463,0.23268793,93303.0,93292.0,0.00455214]
[1736428778677,0.44704293,93303.0,93292.0,0.00455214]
[1736428778898,0.44704293,93303.0,93292.0,0.00655214]
[1736428779197,0.44704293,93303.0,93292.0,0.00155214]
[1736428779405,0.44704293,93303.0,93295.0,0.00155214]
[1736428779406,0.01833293,93303.0,93295.0,0.00155214]
[1736428779621,0.01833293,93303.0,93292.0,0.003]
[1736428779622,0.214346,93307.0,93302.0,0.00155214]
[1736428779831,0.214336,93312.0,93302.0,0.00155214]
[1736428780037,0.214342,93309.0,93302.0,0.00155214]
[1736428780469,0.214336,93312.0,93293.0,0.00155214]
[1736428780470,0.01867448,93312.0,93293.0,0.00155214]
[1736428780677,0.00015024,93315.0,93293.0,0.00155214]
[1736428780881,0.00015024,93315.0,93302.0,0.004]
[1736428780882,0.214355,93303.0,93302.0,0.004]
[1736428782087,0.214376,93294.0,93293.0,0.00155214]
[1736428782509,0.21437,93297.0,93293.0,0.00155214]
[1736428782668,0.214364,93300.0,93293.0,0.00155214]
[1736428782875,0.01909297,93315.0,93293.0,0.00155214]
[1736428783083,0.214355,93303.0,93302.0,0.002]
[1736428783675,0.214355,93303.0,93302.0,0.005]
[1736428783876,0.214355,93303.0,93302.0,0.002]
[1736428784496,0.214367,93298.0,93293.0,0.00155214]
[1736428784700,0.214367,93298.0,93294.0,0.00788]
[1736428786149,0.214367,93298.0,93294.0,0.01288]
[1736428786741,0.214367,93298.0,93294.0,0.01088]
[1736428787052,0.214367,93298.0,93294.0,0.008]
[1736428787053,0.428734,93298.0,93294.0,0.008]
[1736428787253,0.44552737,93298.0,93295.0,0.00788]
[1736428787457,0.44552737,93298.0,93294.0,0.008]
[1736428787665,0.44552737,93298.0,93296.0,0.00788]
[1736428788537,0.01679337,93298.0,93296.0,0.00788]
[1736428788950,0.214363,93300.0,93296.0,0.01088]
[1736428789218,0.428726,93300.0,93296.0,0.01088]
[1736428789430,0.428726,93300.0,93296.0,0.00788]
[1736428789835,0.428726,93300.0,93296.0,0.01588]
[1736428790249,0.428726,93300.0,93296.0,0.01088]
[1736428790460,0.428726,93300.0,93296.0,0.01488]
[1736428790855,0.428726,93300.0,93296.0,0.01088]
[1736428791237,0.428726,93300.0,93296.0,0.00788]
[1736428791630,0.428726,93300.0,93296.0,0.003]
[1736428791854,0.214363,93300.0,93297.0,0.00788]
[1736428792633,0.428726,93300.0,93297.0,0.00788]
[1736428793250,0.214363,93300.0,93297.0,0.01088]
[1736428793468,0.01705939,93302.0,93301.0,0.00155214]
[1736428793680,0.428719,93301.0,93297.0,0.12017976]
[1736428793892,0.428719,93301.0,93297.0,0.01088]
[1736428794102,0.40720832,93301.0,93297.0,0.01588]
[1736428794310,0.40720832,93301.0,93298.0,0.00788]
[1736428794958,0.40720832,93301.0,93297.0,0.005]
[1736428795160,0.40720832,93301.0,93298.0,0.00788]
[1736428796409,0.40720832,93301.0,93298.0,0.00988]
[1736428796849,0.40720832,93301.0,93298.0,0.01388]
[1736428798184,0.40436799,93301.0,93298.0,0.01388]
[1736428802047,0.40436799,93301.0,93298.0,0.006]
[1736428802257,0.214364,93299.0,93298.0,0.006]
[1736428802460,0.364364,93299.0,93298.0,0.01388]
[1736428802660,0.364364,93299.0,93298.0,0.006]
[1736428802866,0.364364,93299.0,93298.0,0.01388]
[1736428803285,0.364364,93299.0,93298.0,0.00988]
[1736428803505,0.364364,93299.0,93298.0,0.01488]
[1736428804163,0.19000799,93301.0,93298.0,0.01488]
[1736428804164,0.214361,93301.0,93298.0,0.01488]
[1736428804399,0.0797,93316.0,93298.0,0.01288]
[1736428804632,0.214346,93307.0,93302.0,0.00155214]
[1736428804833,0.214354,93304.0,93302.0,0.00155214]
[1736428805041,0.21311629,93304.0,93302.0,0.00155214]
[1736428805494,0.21311629,93304.0,93303.0,0.00788]
[1736428806655,0.214383,93291.0,93280.0,0.31830553]
[1736428806857,0.214383,93291.0,93286.0,0.00155214]
[1736428807064,0.214383,93291.0,93286.0,0.1058519]
[1736428807501,0.214383,93291.0,93282.0,0.00155214]
[1736428807502,0.214392,93287.0,93282.0,0.00155214]
[1736428807719,0.214401,93283.0,93282.0,0.00155214]
[1736428807923,0.214401,93283.0,93276.0,0.047]
[1736428808134,0.08081402,93307.0,93272.0,0.23990563]
[1736428808135,0.02207688,93282.0,93277.0,0.00788]
[1736428808332,0.02207688,93282.0,93272.0,0.23990563]
[1736428808333,0.214424,93273.0,93272.0,0.23990563]
[1736428808506,0.214424,93273.0,93272.0,0.24778563]
[1736428808754,0.214424,93273.0,93272.0,0.0078801]
[1736428808978,0.36493957,93273.0,93272.0,0.0078801]
[1736428809604,0.36493957,93273.0,93272.0,1e-07]
[1736428809819,0.36493957,93273.0,93272.0,0.0040001]
[1736428810042,0.36493957,93273.0,93272.0,0.0090001]
[1736428810264,0.38049153,93273.0,93272.0,1e-07]
[1736428810483,0.38049153,93273.0,93272.0,0.0010001]
[1736428811759,0.38049153,93273.0,93272.0,1e-07]
[1736428812201,0.38049153,93273.0,93272.0,0.0010001]
[1736428812606,0.38049153,93273.0,93272.0,1e-07]
[1736428812987,0.38149153,93273.0,93272.0,1e-07]
[1736428814432,0.43695253,93273.0,93272.0,1e-07]
[1736428814674,0.38149153,93273.0,93272.0,1e-07]
[1736428815273,0.38049153,93273.0,93272.0,1e-07]
[1736428815683,0.38149153,93273.0,93272.0,1e-07]
[1736428815894,0.37997596,93273.0,93272.0,1e-07]
[1736428816527,0.38097596,93273.0,93272.0,1e-07]
[1736428816940,0.16655196,93273.0,93272.0,1e-07]
[1736428817960,0.001,93273.0,93272.0,0.00155224]
[1736428818205,0.001,93273.0,93272.0,0.0078401]
[1736428818407,0.21442,93275.0,93272.0,0.0078401]
[1736428818845,0.42884,93275.0,93272.0,0.0098401]
[1736428819051,0.42884,93275.0,93272.0,0.0078401]
[1736428819276,0.21442,93275.0,93273.0,0.00155214]
[1736428819482,0.23054799,93275.0,93273.0,0.00155214]
[1736428819748,0.23054799,93275.0,93274.0,0.00784]
[1736428820168,0.214424,93273.0,93272.0,0.0080001]
[1736428820368,0.17850446,93274.0,93272.0,0.0030001]
[1736428820781,0.364424,93273.0,93272.0,0.0030001]
[1736428821368,0.364424,93273.0,93272.0,1e-07]
[1736428822330,0.365424,93273.0,93272.0,1e-07]
[1736428822534,0.365424,93273.0,93272.0,0.0078401]
[1736428822762,0.364424,93273.0,93272.0,0.0078401]
[1736428822969,0.365424,93273.0,93272.0,0.0078401]
[1736428823505,0.364424,93273.0,93272.0,0.0078401]
[1736428823661,0.365424,93273.0,93272.0,0.0078401]
[1736428824272,0.41403813,93273.0,93272.0,0.0078401]
[1736428824498,0.365424,93273.0,93272.0,0.0078401]
[1736428824947,0.365424,93273.0,93272.0,1e-07]
[1736428825155,0.366041,93273.0,93272.0,1e-07]
[1736428825502,0.367041,93273.0,93272.0,1e-07]
[1736428825802,0.366041,93273.0,93272.0,1e-07]
[1736428826004,0.367041,93273.0,93272.0,1e-07]
[1736428826468,0.366041,93273.0,93272.0,1e-07]
[1736428826751,0.367041,93273.0,93272.0,1e-07]
[1736428827128,0.366041,93273.0,93272.0,1e-07]
[1736428827927,0.56425146,93273.0,93272.0,1e-07]
[1736428828136,0.56473968,93273.0,93272.0,1e-07]
[1736428828561,0.56573968,93273.0,93272.0,1e-07]
[1736428828997,0.56473968,93273.0,93272.0,1e-07]
[1736428829213,0.47182898,93273.0,93272.0,1e-07]
[1736428829662,0.47142443,93273.0,93272.0,1e-07]
[1736428830295,0.365424,93273.0,93272.0,1e-07]
[1736428831167,0.364424,93273.0,93272.0,1e-07]
[1736428832070,0.364424,93273.0,93272.0,0.0010001]
[1736428832307,0.09844786,93283.0,93272.0,0.0010001]
[1736428832308,0.214398,93285.0,93273.0,0.00155214]
[1736428832525,0.0791,93302.0,93278.0,0.00155214]
[1736428832733,0.0791,93302.0,93272.0,1e-07]
[1736428832734,0.214402,93283.0,93272.0,1e-07]
[1736428832950,0.214402,93283.0,93272.0,0.10529986]
[1736428833385,0.214402,93283.0,93272.0,0.10629986]
[1736428833589,0.428804,93283.0,93272.0,0.10529986]
[1736428833792,0.214402,93283.0,93272.0,0.10529986]
[1736428833992,0.214402,93283.0,93272.0,0.10729986]
[1736428834200,0.214402,93283.0,93273.0,0.00784]
[1736428835218,0.214402,93283.0,93273.0,0.00884]
[1736428836030,0.214402,93283.0,93274.0,0.00155214]
[1736428836381,0.23030475,93283.0,93274.0,0.00155214]
[1736428836559,0.23030475,93283.0,93273.0,0.00884]
[1736428836756,0.23030475,93283.0,93273.0,0.01084]
[1736428837118,0.23030475,93283.0,93273.0,0.01039214]
[1736428837325,0.23030475,93283.0,93274.0,0.004]
[1736428837735,0.23030475,93283.0,93277.0,0.00155214]
[1736428838775,0.23030475,93283.0,93274.0,0.004]
[1736428838985,0.23030475,93283.0,93274.0,0.007]
[1736428839179,0.214419,93275.0,93274.0,0.007]
[1736428839467,0.214419,93275.0,93274.0,0.003]
[1736428839675,0.214419,93275.0,93274.0,0.007]
[1736428840198,0.214419,93275.0,93274.0,0.003]
[1736428840392,0.214419,93275.0,93274.0,0.008]
[1736428840555,0.214419,93275.0,93274.0,0.003]
[1736428840750,0.428839,93275.0,93272.0,1e-07]
[1736428841007,0.214419,93275.0,93274.0,0.005]
[1736428842165,0.214416,93277.0,93274.0,0.005]
[1736428842775,0.214416,93277.0,93274.0,0.008]
[1736428843182,0.005,93276.0,93274.0,0.008]
[1736428843384,0.005,93276.0,93275.0,0.00155214]
[1736428843606,0.0017667,93282.0,93276.0,0.0778]
[1736428844794,0.0017667,93282.0,93276.0,0.0798]
[1736428845026,0.214405,93281.0,93276.0,0.0798]
[1736428845222,0.214405,93281.0,93276.0,0.0818]
[1736428846032,0.214405,93281.0,93276.0,0.0798]
[1736428846323,0.0017667,93282.0,93276.0,0.0778]
[1736428846533,0.2161707,93282.0,93276.0,0.0798]
[1736428847256,0.2161707,93282.0,93276.0,0.0778]
[1736428847670,0.214413,93278.0,93276.0,0.0828]
[1736428848063,0.214413,93278.0,93276.0,0.0848]
[1736428848262,0.2161707,93282.0,93276.0,0.0848]
[1736428848461,0.2161707,93282.0,93276.0,0.0828]
[1736428848670,0.214412,93279.0,93276.0,0.0828]
[1736428848834,0.214412,93279.0,93276.0,0.0858]
[1736428849250,0.214412,93279.0,93276.0,0.0778]
[1736428849675,0.214412,93279.0,93276.0,0.0798]
[1736428849887,0.214412,93279.0,93276.0,0.0778]
[1736428850119,0.214404,93282.0,93276.0,0.0778]
[1736428850317,0.214404,93282.0,93276.0,0.0828]
[1736428850523,0.214404,93282.0,93276.0,0.0778]
[1736428850722,0.214404,93282.0,93276.0,0.0808]
[1736428850899,0.214404,93282.0,93276.0,0.0848]
[1736428851147,0.214404,93282.0,93276.0,0.0808]
[1736428851344,0.01590275,93283.0,93276.0,0.0808]
[1736428851550,0.214399,93284.0,93276.0,0.0808]
[1736428852147,0.214399,93284.0,93276.0,0.0778]
[1736428852357,0.214407,93281.0,93276.0,0.0798]
[1736428852762,0.214407,93281.0,93276.0,0.0838]
[1736428852969,0.214407,93281.0,93276.0,0.0798]
[1736428853365,0.214407,93281.0,93276.0,0.0848]
[1736428853646,0.214407,93281.0,93276.0,0.0798]
[1736428853871,0.22932644,93284.0,93276.0,0.0778]
[1736428854046,0.22932644,93284.0,93276.0,0.0838]
[1736428854268,0.214401,93283.0,93276.0,0.0868]
[1736428854660,0.192958,93291.0,93276.0,0.0868]
[1736428854937,0.214403,93282.0,93276.0,0.0868]
[1736428855138,0.214403,93282.0,93276.0,0.0838]
[1736428855332,0.214403,93282.0,93277.0,0.0477]
[1736428855333,0.214405,93282.0,93277.0,0.0477]
[1736428855502,0.214385,93290.0,93278.0,0.00155214]
[1736428855717,0.214395,93286.0,93278.0,0.00155214]
[1736428856678,0.214387,93289.0,93278.0,0.00355214]
[1736428857070,0.214383,93291.0,93279.0,0.21441]
[1736428858834,0.214383,93291.0,93279.0,0.21641]
[1736428859269,0.44362651,93291.0,93279.0,0.21441]
[1736428859673,0.44362651,93291.0,93279.0,0.21741]
[1736428859910,0.22924351,93291.0,93279.0,0.21741]
[1736428860321,0.22924351,93291.0,93279.0,0.22141]
[1736428860718,0.21439,93288.0,93279.0,0.22141]
[1736428860940,0.214407,93281.0,93279.0,0.007]
[1736428861175,0.2288,93280.0,93279.0,0.007]
[1736428861400,0.38070439,93280.0,93279.0,0.007]
[1736428861625,0.38249342,93280.0,93279.0,0.007]
[1736428861842,0.38249342,93280.0,93279.0,0.004]
[1736428862060,0.48679318,93280.0,93279.0,0.006]
[1736428862274,0.58524104,93280.0,93279.0,0.002]
[1736428862534,0.68524104,93280.0,93279.0,0.002]
[1736428862731,0.364424,93273.0,93272.0,1e-07]
[1736428862945,0.46872376,93273.0,93272.0,1e-07]
[1736428863122,0.47051441,93273.0,93272.0,1e-07]
[1736428863324,0.57481417,93273.0,93272.0,1e-07]
[1736428863914,0.57581417,93273.0,93272.0,1e-07]
[1736428864120,0.09844786,93270.0,93267.0,4.52e-05]
[1736428864375,0.364435,93268.0,93267.0,5.011e-05]
[1736428864558,0.64598262,93268.0,93267.0,5.011e-05]
[1736428864761,0.6481779,93268.0,93267.0,5.011e-05]
[1736428864914,0.7481779,93268.0,93267.0,5.011e-05]
[1736428865154,0.85247766,93268.0,93267.0,5.011e-05]
[1736428865989,0.85207303,93268.0,93267.0,5.011e-05]
[1736428866205,0.85607303,93268.0,93267.0,0.00105011]
[1736428866620,0.85607303,93268.0,93248.0,8.51e-05]
[1736428866621,0.443279,93249.0,93248.0,8.51e-05]
[1736428866822,0.443279,93249.0,93248.0,5.011e-05]
[1736428866823,0.64822256,93249.0,93248.0,5.011e-05]
[1736428867035,0.85252232,93249.0,93248.0,5.011e-05]
[1736428867654,0.85271706,93249.0,93248.0,5.011e-05]
[1736428868305,0.214518,93232.0,93231.0,0.00505368]
[1736428868515,0.364518,93232.0,93231.0,0.00555562]
[1736428869585,0.364518,93232.0,93231.0,0.00050194]
[1736428869713,0.364518,93232.0,93231.0,0.00350194]
[1736428869714,0.55825551,93232.0,93231.0,0.00350194]
[1736428869927,0.55825551,93232.0,93231.0,0.00850194]
[1736428870169,0.65710866,93232.0,93231.0,0.00850194]
[1736428870748,0.65710866,93232.0,93231.0,0.00350194]
[1736428871088,0.67144105,93232.0,93231.0,0.00350194]
[1736428871550,0.67144105,93232.0,93231.0,0.00050194]
[1736428871776,0.67244105,93232.0,93231.0,0.00050194]
[1736428872002,0.90154105,93232.0,93231.0,0.00050194]
[1736428872225,3.05929805,93232.0,93231.0,0.00050194]
[1736428872414,3.06329805,93232.0,93231.0,0.00050194]
[1736428872685,3.05929805,93232.0,93231.0,0.00050194]
[1736428872913,3.06029805,93232.0,93231.0,0.00050194]
[1736428873120,3.06632898,93232.0,93231.0,0.00050194]
[1736428873325,0.56297786,93227.0,93226.0,0.03244094]
[1736428873508,0.69027762,93227.0,93226.0,0.03244094]
[1736428873683,0.69068481,93227.0,93226.0,0.03244094]
[1736428873886,0.69271574,93227.0,93226.0,0.03244094]
[1736428874961,0.49426788,93227.0,93226.0,0.03244094]
[1736428875157,0.59426788,93227.0,93226.0,0.03244094]
[1736428875384,0.7572369,93227.0,93226.0,0.03244094]
[1736428875807,0.9232369,93227.0,93226.0,0.03244094]
[1736428876015,0.9312369,93227.0,93226.0,0.03344094]
[1736428876217,0.7682369,93227.0,93226.0,0.03344094]
[1736428876431,0.7572369,93227.0,93226.0,0.03244094]
[1736428876810,0.7652369,93227.0,93226.0,0.03344094]
[1736428877019,0.7572369,93227.0,93226.0,0.03244094]
[1736428877430,0.6652369,93227.0,93226.0,0.03344094]
[1736428877639,0.56727762,93227.0,93226.0,0.03244094]
[1736428877845,0.67027762,93227.0,93226.0,0.03244094]
[1736428878050,0.67280074,93227.0,93226.0,0.03244094]
[1736428878253,0.6741005,93227.0,93226.0,0.03244094]
[1736428878666,0.6771005,93227.0,93226.0,0.03244094]
[1736428879052,0.6851005,93227.0,93226.0,0.03344094]
[1736428879289,2.8438575,93227.0,93226.0,0.001]
[1736428879452,0.36458,93205.0,93204.0,0.0078]
[1736428879654,0.4224949,93205.0,93204.0,0.0078]
[1736428879828,0.36458,93205.0,93204.0,0.0078]
[1736428880035,0.21458,93205.0,93196.0,0.00155214]
[1736428880233,0.21458,93205.0,93204.0,0.0078]
[1736428880471,0.214569,93210.0,93204.0,0.0078]
[1736428881092,0.214569,93210.0,93205.0,0.0794]
[1736428882126,0.22857549,93210.0,93205.0,0.0794]
[1736428882312,0.29434464,93210.0,93205.0,0.0794]
[1736428882487,0.214578,93206.0,93205.0,0.0804]
[1736428883236,0.214578,93206.0,93205.0,0.0834]
[1736428883535,0.214578,93206.0,93205.0,0.0804]
[1736428883949,0.214578,93206.0,93205.0,0.0844]
[1736428884152,0.25889335,93206.0,93205.0,0.0844]
[1736428884359,0.25889335,93206.0,93205.0,0.005]
[1736428884575,0.25889335,93206.0,93205.0,0.0118]
[1736428884576,0.40889335,93206.0,93205.0,0.0118]
[1736428884777,0.40889335,93206.0,93205.0,0.004]
[1736428884978,0.40889335,93206.0,93205.0,0.005]
[1736428885393,0.214578,93206.0,93205.0,0.004]
[1736428885796,0.214578,93206.0,93205.0,0.001]
[1736428885999,0.214578,93206.0,93205.0,0.005]
[1736428886196,0.214578,93206.0,93205.0,0.004]
[1736428886335,0.214578,93206.0,93203.0,0.0078]
[1736428886804,0.214572,93209.0,93205.0,0.006]
[1736428887052,0.22881765,93213.0,93205.0,0.006]
[1736428887258,0.10429976,93227.0,93208.0,0.00155214]
[1736428887461,0.0005006,93232.0,93208.0,0.00155214]
[1736428887666,0.214553,93217.0,93208.0,0.00155214]
[1736428888124,0.214546,93220.0,93208.0,0.00155214]
[1736428888327,0.15,93230.0,93208.0,0.00155214]
[1736428888523,0.214543,93222.0,93209.0,0.214571]
[1736428888854,0.214543,93222.0,93208.0,0.00155214]
[1736428888855,0.2574498,93222.0,93208.0,0.00155214]
[1736428889055,0.214543,93221.0,93209.0,0.21612314]
[1736428889262,0.214525,93229.0,93216.0,0.00155214]
[1736428889463,0.214532,93226.0,93216.0,0.00155214]
[1736428890330,0.214527,93228.0,93217.0,0.214553]
[1736428890740,0.214527,93228.0,93218.0,0.00155214]
[1736428890741,0.214538,93224.0,93218.0,0.00155214]
[1736428890952,0.21453,93227.0,93218.0,0.00155214]
[1736428891099,0.214544,93221.0,93216.0,0.00155214]
[1736428891521,0.214544,93221.0,93211.0,0.00155214]
[1736428891716,0.214544,93221.0,93216.0,0.003]
[1736428891914,0.26324705,93221.0,93216.0,0.003]
[1736428892117,0.214532,93226.0,93218.0,0.00155214]
[1736428892320,0.214534,93225.0,93218.0,0.00155214]
[1736428892549,0.429069,93225.0,93216.0,0.00155214]
[1736428892773,0.214544,93221.0,93216.0,0.00555214]
[1736428892935,0.214544,93221.0,93218.0,0.00155214]
[1736428893359,0.214544,93221.0,93202.0,0.214586]
[1736428893360,0.0430078,93220.0,93209.0,0.00155214]
[1736428893555,0.21453,93227.0,93208.0,0.00155214]
[1736428893758,0.21453,93227.0,93210.0,0.0078]
[1736428893759,0.214566,93211.0,93210.0,0.0078]
[1736428894120,0.214566,93211.0,93208.0,0.00155214]
[1736428894330,0.214566,93211.0,93210.0,0.0078]
[1736428894975,0.214563,93213.0,93210.0,0.0078]
[1736428895793,0.429126,93213.0,93210.0,0.0078]
[1736428896155,0.429126,93213.0,93210.0,0.0098]
[1736428896474,0.214588,93202.0,93199.0,0.00155214]
[1736428896787,0.214588,93202.0,93200.0,0.0078]
[1736428897558,0.214583,93205.0,93200.0,0.0078]
[1736428897758,0.214579,93206.0,93200.0,0.00795043]
[1736428898099,0.429143,93209.0,93200.0,0.00795043]
[1736428898254,0.001,93202.0,93200.0,0.01495043]
[1736428898477,0.214582,93205.0,93200.0,0.00795043]
[1736428898867,0.215582,93205.0,93200.0,0.01295043]
[1736428899088,0.01931577,93205.0,93200.0,0.01295043]
[1736428899272,0.01931577,93205.0,93200.0,0.01495043]
[1736428899472,0.001,93205.0,93200.0,0.01495043]
[1736428899873,0.001,93205.0,93200.0,0.01295043]
[1736428900037,0.215581,93205.0,93200.0,0.01595043]
[1736428900237,0.21528745,93205.0,93200.0,0.01595043]
[1736428900704,0.214581,93205.0,93200.0,0.01095043]
[1736428901105,0.001,93202.0,93200.0,0.01895043]
[1736428901386,0.214589,93202.0,93200.0,0.01095043]
[1736428901550,0.214581,93205.0,93200.0,0.00795043]
[1736428901764,0.25987099,93205.0,93200.0,0.01595043]
[1736428901941,0.214589,93202.0,93200.0,0.01095043]
[1736428902150,0.214589,93202.0,93201.0,0.00784]
[1736428902343,0.215589,93202.0,93201.0,0.00784]
[1736428902671,0.214589,93202.0,93201.0,0.00784]
[1736428902925,0.28033789,93202.0,93201.0,0.00784]
[1736428903109,0.214589,93202.0,93201.0,0.00784]
[1736428903445,0.214589,93202.0,93201.0,0.01084]
[1736428904181,0.214589,93202.0,93201.0,0.003]
[1736428904825,0.214589,93202.0,93200.0,0.00015043]
[1736428905043,0.25305555,93202.0,93200.0,0.00015043]
[1736428905253,0.25305555,93202.0,93201.0,0.003]
[1736428905408,0.25405555,93202.0,93201.0,0.011]
[1736428905616,0.15,93201.0,93200.0,0.00015043]
[1736428906038,0.25429976,93201.0,93200.0,0.00715043]
[1736428906207,0.34243821,93201.0,93200.0,0.00715043]
[1736428906794,0.34243821,93201.0,93200.0,0.00815043]
[1736428907222,0.09844786,93190.0,93160.0,0.1279]
[1736428907441,0.493033,93182.0,93181.0,0.00023511]
[1736428907636,0.78682038,93182.0,93181.0,0.00023511]
[1736428908467,0.78682038,93182.0,93181.0,0.00523511]
[1736428908829,0.78682038,93182.0,93181.0,0.00023511]
[1736428909050,0.69578062,93182.0,93181.0,0.00023511]
[1736428909751,0.70278062,93182.0,93181.0,0.00123511]
[1736428909948,0.70478062,93182.0,93181.0,0.00123511]
[1736428910503,0.70319254,93182.0,93181.0,0.00123511]
[1736428911128,0.70976704,93182.0,93181.0,0.00023511]
[1736428911375,0.8220668,93182.0,93181.0,0.00023511]
[1736428911812,0.8140668,93182.0,93181.0,0.00023511]
[1736428912026,0.8230668,93182.0,93181.0,0.00023511]
[1736428912481,0.61790726,93182.0,93181.0,0.00023511]
[1736428912688,0.61990726,93182.0,93181.0,0.00023511]
[1736428913218,0.61790726,93182.0,93181.0,0.00023511]
[1736428913487,0.61990726,93182.0,93181.0,0.00023511]
[1736428914021,0.61990726,93182.0,93181.0,0.00014991]
[1736428914235,0.61990726,93182.0,93144.0,0.21532599]
[1736428914236,0.34844786,93145.0,93144.0,0.21532599]
[1736428914449,0.45274762,93145.0,93144.0,0.21537612]
[1736428914648,0.45944886,93145.0,93144.0,0.11324555]
[1736428914853,0.45944886,93145.0,93144.0,5.013e-05]
[1736428915074,0.45745974,93145.0,93144.0,5.013e-05]
[1736428915271,0.36685497,93145.0,93144.0,5.013e-05]
[1736428915690,0.27699475,93145.0,93144.0,5.013e-05]
[1736428915926,0.01369499,93145.0,93144.0,5.013e-05]
[1736428916123,0.004,93145.0,93144.0,5.013e-05]
[1736428916320,0.20674762,93145.0,93144.0,5.013e-05]
[1736428916545,0.179535,93145.0,93144.0,5.013e-05]
[1736428916747,0.228002,93149.0,93144.0,5.013e-05]
[1736428917119,0.003,93145.0,93144.0,5.013e-05]
[1736428917354,0.012,93145.0,93144.0,5.013e-05]
[1736428917751,0.003,93145.0,93144.0,5.013e-05]
[1736428918617,0.003,93145.0,93144.0,0.00205013]
[1736428918820,0.214714,93147.0,93144.0,0.00205013]
[1736428919022,0.429428,93147.0,93144.0,0.00205013]
[1736428919649,0.214714,93147.0,93145.0,0.00784]
[1736428920087,0.10429976,93146.0,93145.0,0.00784]
[1736428920306,0.18047194,93146.0,93145.0,0.00784]
[1736428920732,0.364718,93145.0,93144.0,0.00105013]
[1736428920943,0.32114786,93144.0,93143.0,0.01211553]
[1736428921144,2.5675477,93144.0,93143.0,0.01211553]
[1736428921351,0.09844786,93127.0,93080.0,0.36600988]
[1736428921573,0.447581,93118.0,93117.0,0.00058721]
[1736428921795,0.46908076,93118.0,93117.0,0.00058721]
[1736428922813,0.48241661,93118.0,93117.0,0.00058721]
[1736428923428,0.01633585,93118.0,93117.0,0.00058721]
[1736428923646,0.003,93118.0,93117.0,0.00842721]
[1736428923856,0.214781,93118.0,93117.0,0.00058721]
[1736428924080,0.223781,93118.0,93117.0,0.00058721]
[1736428924296,0.009,93118.0,93117.0,0.00058721]
[1736428924524,0.214778,93119.0,93117.0,0.00058721]
[1736428924982,0.25629976,93118.0,93117.0,0.00058721]
[1736428925414,0.25729976,93118.0,93117.0,0.00058721]
[1736428925643,0.25729976,93118.0,93117.0,0.00158721]
[1736428925887,0.25729976,93118.0,93117.0,0.00058721]
[1736428926092,0.53167758,93118.0,93117.0,0.00058721]
[1736428926294,0.50909218,93118.0,93117.0,0.00058721]
[1736428926504,0.26718654,93118.0,93117.0,0.00058721]
[1736428926918,0.26718654,93118.0,93117.0,0.00158721]
[1736428927342,0.26718654,93118.0,93117.0,0.00058721]
[1736428928266,0.27618654,93118.0,93117.0,0.00058721]
[1736428928671,0.26718654,93118.0,93117.0,0.00058721]
[1736428928877,0.34770518,93118.0,93117.0,0.00058721]
[1736428929082,0.35270518,93118.0,93117.0,0.00058721]
[1736428929479,0.35170518,93118.0,93117.0,0.00058721]
[1736428929609,0.35270518,93118.0,93117.0,0.00058721]
[1736428930082,0.27318654,93118.0,93117.0,0.00058721]
[1736428931763,0.3666344,93118.0,93117.0,0.00058721]
[1736428931906,0.39578344,93118.0,93117.0,0.00058721]
[1736428932114,0.39678344,93118.0,93117.0,0.00058721]
[1736428932460,0.39005153,93118.0,93117.0,0.00058721]